bitfinex/quotes_BTCUSD_20220304
["timestamp","ask_amount","ask_price","bid_price","bid_amount"]
[1646436855809,0.00022069,39132.0,39124.0,0.74036786]
[1646436856007,2.73066275,39135.0,39124.0,0.74036786]
[1646436856212,0.275,39135.0,39124.0,0.74036786]
[1646436856408,0.275,39135.0,39124.0,0.9550374]
[1646436856409,0.00022069,39132.0,39124.0,0.9550374]
[1646436856808,0.00022069,39132.0,39124.0,0.76600786]
[1646436857208,0.25,39135.0,39124.0,0.74036786]
[1646436857409,0.25,39135.0,39130.0,0.224624]
[1646436857610,0.00022069,39132.0,39130.0,0.224624]
[1646436857808,0.00022069,39132.0,39130.0,0.274624]
[1646436858011,0.00022069,39132.0,39130.0,0.269624]
[1646436858212,0.00022069,39132.0,39131.0,0.3]
[1646436858413,0.25,39135.0,39132.0,0.250253]
[1646436858613,0.25,39135.0,39132.0,0.31417467]
[1646436858812,0.00022066,39133.0,39132.0,0.31417467]
[1646436859011,0.00022066,39133.0,39132.0,0.61417467]
[1646436859213,0.00022066,39133.0,39132.0,0.66417467]
[1646436859653,0.25,39135.0,39132.0,0.66417467]
[1646436859851,0.25,39135.0,39132.0,0.36417467]
[1646436860051,0.25,39135.0,39132.0,0.66417467]
[1646436860052,0.00022066,39134.0,39132.0,0.66417467]
[1646436860250,0.00022066,39134.0,39133.0,0.32564]
[1646436860452,0.00022066,39134.0,39133.0,0.701968]
[1646436860751,0.00022066,39134.0,39133.0,0.765888]
[1646436860957,0.0022,39142.0,39138.0,0.376279]
[1646436861157,0.0022,39142.0,39140.0,0.224558]
[1646436861356,0.0022,39142.0,39141.0,0.89460356]
[1646436861551,0.0022,39142.0,39141.0,0.59460356]
[1646436861751,0.0022,39142.0,39141.0,0.64460356]
[1646436863581,0.0022,39142.0,39141.0,0.05]
[1646436863781,0.0022,39142.0,39136.0,0.002]
[1646436864381,0.0022,39142.0,39130.0,0.303]
[1646436864382,0.0022,39142.0,39130.0,0.3]
[1646436864581,0.05407684,39140.0,39134.0,0.20151564]
[1646436864782,0.05407684,39140.0,39131.0,0.376424]
[1646436864980,0.00018847,39141.0,39132.0,0.376424]
[1646436865380,0.00018847,39141.0,39132.0,0.426424]
[1646436865582,0.18927606,39140.0,39133.0,0.3]
[1646436865781,0.0022,39142.0,39134.0,0.4322628]
[1646436865981,0.00022819,39138.0,39134.0,0.4822628]
[1646436866380,0.00022819,39138.0,39134.0,0.274511]
[1646436866781,0.17198347,39138.0,39134.0,0.274511]
[1646436867034,0.17175528,39138.0,39134.0,0.274511]
[1646436867230,0.17198347,39138.0,39130.0,0.376424]
[1646436867628,0.17198347,39138.0,39129.0,0.20847092]
[1646436867826,0.17198347,39138.0,39131.0,0.376424]
[1646436868027,0.17175528,39138.0,39130.0,0.376424]
[1646436868627,0.00022819,39135.0,39131.0,0.376424]
[1646436868829,0.00022819,39135.0,39130.0,0.05]
[1646436869028,0.00022819,39135.0,39131.0,0.224533]
[1646436869230,0.00022819,39135.0,39132.0,0.376424]
[1646436869430,0.17175528,39138.0,39123.0,0.55533289]
[1646436869629,0.00022819,39134.0,39124.0,0.224656]
[1646436869831,0.23523511,39138.0,39124.0,0.224656]
[1646436870033,0.063952,39137.0,39123.0,0.60533289]
[1646436870230,0.003,39140.0,39124.0,0.376424]
[1646436870429,0.0272,39142.0,39125.0,0.3]
[1646436870629,0.0272,39142.0,39126.0,0.224645]
[1646436870630,0.010226,39138.0,39126.0,0.224645]
[1646436870877,0.0272,39142.0,39128.0,0.20424465]
[1646436871077,0.0272,39142.0,39128.0,0.25424465]
[1646436871276,0.15325268,39133.0,39129.0,0.676424]
[1646436871475,0.02564,39140.0,39129.0,0.376424]
[1646436871677,0.02564,39140.0,39129.0,0.3]
[1646436871976,0.02564,39140.0,39128.0,0.25424465]
[1646436872679,0.063947,39141.0,39128.0,0.25424465]
[1646436872879,0.0272,39142.0,39134.0,0.17100568]
[1646436873478,0.0272,39142.0,39135.0,0.376424]
[1646436873683,0.0272,39142.0,39134.0,0.17100568]
[1646436873880,0.0272,39142.0,39137.0,0.376424]
[1646436874082,0.0272,39142.0,39134.0,0.22100568]
[1646436874285,0.0022,39142.0,39135.0,0.224445]
[1646436874530,0.00022819,39140.0,39135.0,0.524445]
[1646436875029,0.00022819,39140.0,39136.0,0.3]
[1646436875232,0.0022,39142.0,39137.0,0.376424]
[1646436875630,0.00022819,39139.0,39138.0,0.3]
[1646436875929,0.00022819,39139.0,39138.0,0.274436]
[1646436876630,0.0022,39142.0,39139.0,0.376404]
[1646436876830,0.00022819,39140.0,39139.0,0.376404]
[1646436877129,0.00022819,39140.0,39139.0,0.05]
[1646436877330,0.00022819,39140.0,39136.0,0.05]
[1646436877532,0.00022819,39140.0,39134.0,0.05]
[1646436877735,0.1953241,39142.0,39137.0,0.05]
[1646436877931,0.1953241,39142.0,39134.0,0.05]
[1646436878280,0.23326176,39135.0,39131.0,0.376424]
[1646436878482,0.1691329,39135.0,39130.0,0.01277]
[1646436878878,0.05162819,39140.0,39130.0,0.01277]
[1646436878879,0.063949,39138.0,39130.0,0.01277]
[1646436879079,0.010224,39141.0,39130.0,0.01277]
[1646436879280,0.00022568,39136.0,39131.0,0.376424]
[1646436879479,0.00022568,39136.0,39133.0,0.376424]
[1646436879680,0.00022568,39136.0,39130.0,0.01277]
[1646436879681,0.00022568,39136.0,39134.0,0.524503]
[1646436879882,0.00022568,39136.0,39134.0,0.224503]
[1646436880081,0.16462723,39141.0,39135.0,0.19535697]
[1646436880285,0.16462723,39141.0,39136.0,0.376395]
[1646436880483,0.00022569,39137.0,39136.0,0.05]
[1646436880681,0.00022569,39137.0,39136.0,0.426424]
[1646436881383,0.0062,39142.0,39137.0,0.02564]
[1646436881584,0.0062,39142.0,39138.0,0.224448]
[1646436881787,0.0062,39142.0,39140.0,0.37638]
[1646436882031,0.0062,39142.0,39140.0,0.42638]
[1646436882430,0.0022,39142.0,39141.0,0.17700018]
[1646436882633,0.0022,39142.0,39141.0,0.70143018]
[1646436882835,0.0022,39142.0,39141.0,0.40143018]
[1646436884033,0.0022,39142.0,39141.0,0.22443]
[1646436884735,0.0022,39142.0,39134.0,0.3]
[1646436885036,0.0022,39142.0,39135.0,0.224466]
[1646436886082,2.23577745,39137.0,39135.0,0.274466]
[1646436886482,2.23577745,39137.0,39135.0,0.05]
[1646436886680,2.23577745,39137.0,39130.0,0.01277]
[1646436887079,2.23577745,39137.0,39132.0,0.376424]
[1646436887379,2.23577745,39137.0,39131.0,0.376424]
[1646436887579,0.00022106,39136.0,39131.0,0.376424]
[1646436887780,0.00022106,39136.0,39131.0,0.426424]
[1646436888082,2.23099851,39137.0,39131.0,0.426424]
[1646436889635,0.20801089,39135.0,39130.0,0.01277]
[1646436890638,0.20801089,39135.0,39128.0,0.00010932]
[1646436890837,0.20801089,39135.0,39125.0,0.16800951]
[1646436890838,0.21233275,39135.0,39125.0,0.16800951]
[1646436891036,0.21233275,39135.0,39128.0,0.00010932]
[1646436892037,0.21233275,39135.0,39125.0,0.22000951]
[1646436892238,0.23797275,39135.0,39128.0,0.00010932]
[1646436893383,0.23797275,39135.0,39125.0,0.21800951]
[1646436893582,0.23797275,39135.0,39128.0,0.0001094]
[1646436894484,0.32564,39134.0,39125.0,0.21800951]
[1646436894682,0.02564,39134.0,39128.0,0.0001094]
[1646436894882,0.02996186,39134.0,39128.0,0.0001094]
[1646436895083,0.02564,39134.0,39128.0,0.0001094]
[1646436895691,0.17404815,39135.0,39125.0,0.21800951]
[1646436895885,0.17404815,39135.0,39128.0,0.0001094]
[1646436896284,2.35890151,39137.0,39128.0,0.0001094]
[1646436896887,2.35890151,39137.0,39126.0,0.3]
[1646436897134,0.21307175,39134.0,39128.0,0.00010938]
[1646436897332,0.21307175,39134.0,39129.0,0.376424]
[1646436897532,2.29494951,39137.0,39130.0,0.376424]
[1646436897733,0.010226,39135.0,39128.0,0.00010938]
[1646436897933,0.010226,39135.0,39129.0,0.376424]
[1646436898134,2.29494951,39137.0,39126.0,0.3]
[1646436898437,2.29494951,39137.0,39131.0,0.16928905]
[1646436898635,0.00022079,39138.0,39131.0,0.16928905]
[1646436898836,0.00022079,39138.0,39131.0,0.21928905]
[1646436899237,0.002,39139.0,39132.0,0.376424]
[1646436899435,0.15820891,39139.0,39131.0,0.21928905]
[1646436899636,0.0002208,39138.0,39132.0,0.224514]
[1646436900040,0.0002208,39138.0,39133.0,0.376424]
[1646436900239,0.0002208,39138.0,39134.0,0.426424]
[1646436900440,0.0122,39142.0,39131.0,0.21928905]
[1646436900889,0.00022081,39138.0,39132.0,0.3]
[1646436901191,0.00022081,39138.0,39133.0,0.376424]
[1646436901387,0.00022081,39138.0,39133.0,0.676424]
[1646436901584,0.00022081,39138.0,39133.0,0.376424]
[1646436901785,0.16063618,39139.0,39133.0,0.376424]
[1646436901987,0.16063618,39139.0,39132.0,0.19626501]
[1646436901988,1.83215119,39134.0,39132.0,0.19626501]
[1646436902185,1.83215119,39134.0,39133.0,0.376424]
[1646436902789,0.00022081,39138.0,39133.0,0.376424]
[1646436902987,0.16063618,39139.0,39133.0,0.376424]
[1646436903185,0.0002208,39138.0,39132.0,0.24626501]
[1646436903385,0.0012208,39138.0,39133.0,0.376424]
[1646436904190,0.001,39138.0,39134.0,0.376424]
[1646436904388,0.00122081,39138.0,39132.0,0.24626501]
[1646436904633,0.00022081,39138.0,39134.0,0.376424]
[1646436904830,0.00022081,39138.0,39132.0,0.24626501]
[1646436905031,0.00022081,39138.0,39133.0,0.376424]
[1646436905334,0.004,39140.0,39133.0,0.376424]
[1646436905533,0.0002208,39138.0,39132.0,0.24626501]
[1646436905732,0.0002208,39138.0,39133.0,0.376424]
[1646436905932,0.0002208,39138.0,39133.0,0.676424]
[1646436906534,0.014223,39140.0,39135.0,0.02564]
[1646436906734,0.014223,39140.0,39138.0,0.402012]
[1646436906735,0.010223,39140.0,39138.0,0.402012]
[1646436906933,0.0122,39142.0,39139.0,0.550112]
[1646436907136,0.0122,39142.0,39140.0,0.401991]
[1646436907334,0.0122,39142.0,39140.0,0.60888952]
[1646436907533,0.0122,39142.0,39140.0,0.64716087]
[1646436907935,0.0122,39142.0,39140.0,0.94716087]
[1646436908781,0.0122,39142.0,39140.0,0.58324952]
[1646436908985,0.0122,39142.0,39140.0,0.94716076]
[1646436909184,0.0122,39142.0,39141.0,0.3]
[1646436909381,0.0122,39142.0,39141.0,0.550098]
[1646436909781,0.0122,39142.0,39141.0,0.524458]
[1646436910382,0.0122,39142.0,39141.0,0.224458]
[1646436910882,0.0122,39142.0,39140.0,0.05]
[1646436911084,0.0122,39142.0,39135.0,0.2721]
[1646436911386,0.0122,39142.0,39136.0,0.376424]
[1646436911585,0.0122,39142.0,39135.0,0.2721]
[1646436911784,0.0122,39142.0,39130.0,0.3509]
[1646436912035,0.0122,39142.0,39131.0,0.84408641]
[1646436913636,0.0122,39142.0,39131.0,0.89408641]
[1646436914038,0.00022293,39138.0,39131.0,0.89408641]
[1646436914636,0.00022293,39138.0,39131.0,0.95801636]
[1646436914836,0.00022293,39138.0,39131.0,0.89408641]
[1646436915038,0.0122,39142.0,39131.0,0.89408641]
[1646436915237,0.00022536,39138.0,39131.0,0.89408641]
[1646436916085,0.0122,39142.0,39131.0,0.89408641]
[1646436916484,0.00022536,39138.0,39131.0,0.89402218]
[1646436916687,0.00022536,39138.0,39132.0,0.3]
[1646436916890,0.00022536,39138.0,39133.0,0.224526]
[1646436917090,0.17323949,39137.0,39133.0,0.224526]
[1646436918187,0.17323949,39137.0,39133.0,0.274526]
[1646436918587,0.063944,39141.0,39133.0,0.05]
[1646436918787,0.00021919,39138.0,39128.0,0.0001056]
[1646436918987,0.00021919,39138.0,39129.0,0.376424]
[1646436919287,0.00021919,39138.0,39130.0,0.19500965]
[1646436919534,0.00021919,39138.0,39131.0,0.224562]
[1646436919736,0.063944,39141.0,39131.0,0.274562]
[1646436920233,0.00021919,39138.0,39131.0,0.274562]
[1646436920932,0.063944,39141.0,39131.0,0.274562]
[1646436921136,2.49016876,39132.0,39130.0,0.24500965]
[1646436921336,0.171942,39137.0,39131.0,0.376424]
[1646436921535,0.00021919,39138.0,39131.0,0.376424]
[1646436921935,0.00021919,39138.0,39132.0,0.3]
[1646436922138,0.0122,39142.0,39133.0,0.224534]
[1646436922435,0.00022058,39138.0,39132.0,0.05]
[1646436922634,0.16915801,39138.0,39133.0,0.376424]
[1646436923283,0.16893743,39138.0,39133.0,0.376424]
[1646436923485,0.16893743,39138.0,39132.0,0.05]
[1646436923687,0.16915801,39138.0,39133.0,0.376424]
[1646436923885,0.16915801,39138.0,39131.0,0.376424]
[1646436924487,0.16893743,39138.0,39131.0,0.376424]
[1646436924789,0.16915801,39138.0,39131.0,0.376424]
[1646436924986,1.73892604,39132.0,39131.0,0.376424]
[1646436925185,0.16915801,39138.0,39131.0,0.376424]
[1646436925788,0.16893743,39138.0,39131.0,0.376424]
[1646436925987,0.1691577,39138.0,39131.0,0.376424]
[1646436926188,0.1691577,39138.0,39132.0,0.376414]
[1646436926387,0.2331067,39138.0,39133.0,0.376424]
[1646436926587,0.2331067,39138.0,39128.0,0.00010919]
[1646436926786,0.2331067,39138.0,39129.0,0.224553]
[1646436927054,0.23288643,39138.0,39129.0,0.274553]
[1646436928053,0.063949,39138.0,39129.0,0.376424]
[1646436928254,0.063949,39138.0,39126.0,0.376424]
[1646436928454,0.089589,39138.0,39126.0,0.376424]
[1646436928655,0.089589,39138.0,39125.0,0.06277]
[1646436928855,0.153538,39138.0,39125.0,0.01277]
[1646436929260,0.17564,39134.0,39121.0,0.004]
[1646436929460,0.063971,39131.0,39121.0,0.004]
[1646436929659,0.9826,39130.0,39128.0,0.00011811]
[1646436929858,1.157624,39129.0,39128.0,0.00011811]
[1646436930060,1.40828801,39129.0,39128.0,0.00011811]
[1646436930257,1.47340959,39129.0,39128.0,0.00011811]
[1646436930461,0.51720438,39129.0,39128.0,0.00011811]
[1646436930658,0.063973,39126.0,39116.0,0.18961168]
[1646436930884,0.0514,39125.0,39116.0,0.18961168]
[1646436931185,0.0514,39125.0,39108.0,0.3]
[1646436931186,0.26564001,39121.0,39108.0,0.3]
[1646436931385,0.1589847,39119.0,39109.0,0.376424]
[1646436932185,0.24000001,39121.0,39113.0,0.16628011]
[1646436932384,0.24000001,39121.0,39113.0,0.21628011]
[1646436933285,0.18465332,39119.0,39115.0,0.00013377]
[1646436933486,0.17965332,39119.0,39115.0,0.00013377]
[1646436933688,0.56531723,39118.0,39115.0,0.00013377]
[1646436933888,0.31687023,39118.0,39115.0,0.00013377]
[1646436934087,0.31687023,39118.0,39104.0,0.01277]
[1646436934088,0.0514,39117.0,39104.0,0.01277]
[1646436934288,0.8326,39117.0,39115.0,0.00013377]
[1646436934546,0.15673479,39116.0,39115.0,0.00013377]
[1646436934946,0.2198124,39116.0,39115.0,0.00013377]
[1646436935347,0.02564,39115.0,39103.0,0.376424]
[1646436935550,0.127982,39114.0,39103.0,0.376424]
[1646436935746,0.427982,39114.0,39103.0,0.376424]
[1646436935946,2.57459623,39108.0,39103.0,0.376424]
[1646436936248,1.81579959,39108.0,39103.0,0.55774092]
[1646436936746,1.81579959,39108.0,39105.0,0.225005]
[1646436936949,1.81579959,39108.0,39104.0,0.00013381]
[1646436937149,1.81579959,39108.0,39105.0,0.376424]
[1646436937351,0.0514,39114.0,39104.0,0.00013381]
[1646436937550,0.0764,39114.0,39105.0,0.224984]
[1646436937751,0.0764,39114.0,39107.0,0.376404]
[1646436937752,0.24000001,39109.0,39107.0,0.376404]
[1646436937951,0.24000001,39109.0,39108.0,0.52497]
[1646436938149,0.19891316,39119.0,39109.0,0.24]
[1646436938397,1.44050736,39128.0,39116.0,0.19647583]
[1646436938398,0.60250096,39126.0,39116.0,0.19647583]
[1646436938597,0.15550096,39126.0,39117.0,0.224908]
[1646436938793,0.025,39126.0,39117.0,0.524908]
[1646436938993,0.025,39126.0,39117.0,0.3]
[1646436939193,0.20209891,39126.0,39120.0,0.00012038]
[1646436939595,0.063965,39127.0,39120.0,0.00012038]
[1646436939796,0.088965,39127.0,39120.0,0.00012038]
[1646436940000,0.025,39127.0,39122.0,0.15834341]
[1646436940205,0.3232,39135.0,39123.0,0.3]
[1646436940206,0.15550096,39134.0,39123.0,0.3]
[1646436940407,0.18050096,39135.0,39124.0,0.376424]
[1646436940597,0.21462638,39134.0,39125.0,0.3]
[1646436940799,0.21462638,39134.0,39126.0,0.224647]
[1646436940999,0.21462638,39134.0,39125.0,0.05]
[1646436941000,0.0688844,39132.0,39125.0,0.05]
[1646436941199,0.0688844,39132.0,39122.0,0.00012037]
[1646436941400,0.0688844,39132.0,39120.0,0.376424]
[1646436941599,0.20052542,39128.0,39127.0,0.00010665]
[1646436941802,0.025,39134.0,39127.0,0.00010665]
[1646436942033,2.11678925,39129.0,39127.0,0.00010665]
[1646436942437,0.15550096,39128.0,39127.0,0.00010665]
[1646436942634,0.15550096,39128.0,39120.0,0.376424]
[1646436942937,0.15550096,39128.0,39120.0,0.426424]
[1646436943634,0.15550096,39128.0,39121.0,0.376414]
[1646436943835,0.15550096,39128.0,39121.0,0.426414]
[1646436944034,0.15176643,39128.0,39121.0,0.426414]
[1646436944236,2.14178925,39129.0,39121.0,0.426414]
[1646436944434,0.025,39129.0,39121.0,0.426414]
[1646436944634,0.063955,39134.0,39125.0,0.18912954]
[1646436945235,0.088955,39134.0,39128.0,0.00013349]
[1646436946089,0.088955,39134.0,39125.0,0.05]
[1646436946291,0.063954,39135.0,39126.0,0.676424]
[1646436946292,0.1748546,39135.0,39126.0,0.676424]
[1646436946493,0.1748546,39135.0,39128.0,0.00013349]
[1646436946790,0.1748546,39135.0,39129.0,0.05]
[1646436946992,0.1748546,39135.0,39128.0,0.00013349]
[1646436947291,0.1748546,39135.0,39127.0,0.003]
[1646436947490,0.1748546,39135.0,39128.0,0.37655749]
[1646436947691,0.1748546,39135.0,39128.0,0.00013349]
[1646436947989,0.1748546,39135.0,39129.0,0.376424]
[1646436947990,2.29022649,39131.0,39129.0,0.376424]
[1646436948191,2.29022649,39131.0,39129.0,0.426424]
[1646436948391,0.15556043,39130.0,39129.0,0.426424]
[1646436948790,0.010226,39132.0,39129.0,0.426424]
[1646436949095,0.127911,39134.0,39129.0,0.05]
[1646436949293,0.063955,39134.0,39128.0,0.00013349]
[1646436949760,0.063955,39134.0,39127.0,0.003]
[1646436949962,0.17463588,39129.0,39128.0,0.00012014]
[1646436950161,0.127911,39134.0,39128.0,0.00012014]
[1646436950365,0.05778371,39133.0,39128.0,0.00012014]
[1646436950961,0.05778371,39133.0,39119.0,0.376424]
[1646436951163,0.063961,39130.0,39128.0,0.00012014]
[1646436951361,0.17226945,39129.0,39128.0,0.00012014]
[1646436952261,0.17226945,39129.0,39121.0,0.376424]
[1646436952461,0.17226945,39129.0,39127.0,0.00012014]
[1646436952862,0.063961,39130.0,39127.0,0.00012014]
[1646436953291,0.063961,39130.0,39120.0,0.23076513]
[1646436953492,0.063961,39130.0,39127.0,0.00010676]
[1646436954497,0.063961,39130.0,39120.0,0.23076513]
[1646436954695,0.063961,39130.0,39127.0,0.00010676]
[1646436955094,0.063955,39133.0,39127.0,0.00010676]
[1646436955695,0.063955,39133.0,39121.0,0.3]
[1646436955897,0.063955,39133.0,39128.0,0.00010676]
[1646436956094,0.12544656,39130.0,39128.0,0.00010676]
[1646436956895,0.12544656,39130.0,39121.0,0.3]
[1646436957155,0.12544656,39130.0,39127.0,0.00010947]
[1646436957557,0.18940856,39130.0,39127.0,0.00010947]
[1646436957956,0.063962,39130.0,39127.0,0.00010947]
[1646436958156,0.063958,39133.0,39121.0,0.3]
[1646436958355,0.025,39134.0,39127.0,0.00010947]
[1646436959357,0.025,39134.0,39121.0,0.3]
[1646436959557,0.152914,39134.0,39128.0,0.00010947]
[1646436960157,0.088956,39134.0,39128.0,0.00010947]
[1646436960358,0.19440131,39131.0,39128.0,0.00010947]
[1646436960559,0.19440131,39131.0,39123.0,0.17960216]
[1646436960798,0.19440131,39131.0,39128.0,0.00010886]
[1646436961793,0.19440131,39131.0,39118.0,0.3]
[1646436961992,0.19440131,39131.0,39128.0,0.00010886]
[1646436962693,0.099184,39134.0,39128.0,0.00010886]
[1646436962892,0.099184,39134.0,39120.0,0.45595042]
[1646436963093,0.099184,39134.0,39128.0,0.00010886]
[1646436963394,0.127917,39133.0,39128.0,0.00010886]
[1646436963797,0.063957,39133.0,39128.0,0.00010886]
[1646436964195,0.063957,39133.0,39121.0,0.3]
[1646436964396,0.16603207,39132.0,39122.0,0.376424]
[1646436964634,0.063957,39133.0,39122.0,0.05]
[1646436964834,0.063957,39133.0,39123.0,0.376424]
[1646436965036,0.063957,39133.0,39123.0,0.35]
[1646436965237,0.063957,39133.0,39123.0,0.05]
[1646436965437,0.063957,39133.0,39121.0,0.35]
[1646436966236,0.17611433,39129.0,39121.0,0.35]
[1646436966439,0.17611433,39129.0,39121.0,0.05]
[1646436966637,0.17611433,39129.0,39117.0,0.3]
[1646436966638,0.17611433,39129.0,39117.0,0.35]
[1646436966836,2.34947933,39126.0,39118.0,0.376424]
[1646436967036,2.32947933,39126.0,39119.0,0.3]
[1646436967237,2.32947933,39126.0,39120.0,0.224748]
[1646436967836,2.32947933,39126.0,39120.0,0.219748]
[1646436968035,2.32947933,39126.0,39121.0,0.00013324]
[1646436968996,0.21907436,39134.0,39120.0,0.219748]
[1646436969192,0.21907436,39134.0,39122.0,0.00013324]
[1646436969491,0.17281704,39128.0,39122.0,0.00013324]
[1646436969691,0.17281704,39128.0,39123.0,0.426461]
[1646436969995,2.50193221,39124.0,39123.0,0.426461]
[1646436970391,0.17281704,39128.0,39123.0,0.426461]
[1646436970995,0.01041405,39134.0,39123.0,0.05]
[1646436971293,0.035867,39134.0,39119.0,0.376461]
[1646436971497,0.002,39132.0,39120.0,0.3]
[1646436971896,0.002,39132.0,39121.0,0.376461]
[1646436972152,0.002,39132.0,39120.0,0.35]
[1646436972352,0.002,39132.0,39121.0,0.3]
[1646436972753,0.01045396,39134.0,39124.0,0.00013308]
[1646436973754,0.035867,39134.0,39119.0,0.001]
[1646436973954,0.17134485,39129.0,39127.0,0.00013307]
[1646436974958,0.17134485,39129.0,39118.0,0.376461]
[1646436975157,0.17134485,39129.0,39126.0,0.00013307]
[1646436975991,0.15537235,39129.0,39126.0,0.00013307]
[1646436976192,0.15537235,39129.0,39117.0,0.23305672]
[1646436976390,0.15537235,39129.0,39126.0,0.00013307]
[1646436976799,0.376461,39128.0,39126.0,0.00013307]
[1646436976994,0.063972,39128.0,39126.0,0.00013307]
[1646436977193,0.845172,39128.0,39126.0,3.07e-06]
[1646436977397,1.46514133,39127.0,39114.0,0.01277]
[1646436977594,0.845185,39125.0,39114.0,0.01277]
[1646436977795,0.376461,39124.0,39114.0,0.01277]
[1646436977995,0.025,39125.0,39115.0,0.376461]
[1646436978197,0.15565106,39124.0,39116.0,0.376461]
[1646436978396,0.0441641,39129.0,39116.0,0.56800681]
[1646436978596,0.0441641,39129.0,39117.0,0.3]
[1646436978896,0.0391641,39129.0,39117.0,0.3]
[1646436979299,0.1031331,39129.0,39117.0,0.3]
[1646436979750,0.19000225,39125.0,39117.0,0.3]
[1646436980050,0.1031331,39129.0,39122.0,0.16811717]
[1646436980250,0.0391641,39129.0,39116.0,0.001]
[1646436980748,0.0641641,39129.0,39115.0,0.35]
[1646436980948,0.0641641,39129.0,39111.0,0.3]
[1646436981149,0.19934099,39125.0,39121.0,0.00013245]
[1646436981348,0.025,39125.0,39121.0,0.00013245]
[1646436981549,0.09904392,39129.0,39121.0,0.00013245]
[1646436981748,0.376461,39128.0,39121.0,0.00013245]
[1646436982150,0.376461,39126.0,39114.0,0.002]
[1646436982350,0.18801192,39129.0,39123.0,0.00013244]
[1646436982550,0.376461,39128.0,39123.0,0.00013244]
[1646436983150,0.169495,39127.0,39123.0,0.00013244]
[1646436983388,0.376461,39125.0,39116.0,0.16253291]
[1646436983590,0.401461,39125.0,39124.0,0.00013244]
[1646436983993,1.182661,39125.0,39124.0,0.00013244]
[1646436984390,1.33831206,39125.0,39124.0,0.00013244]
[1646436984692,0.127962,39122.0,39111.0,0.3]
[1646436984890,0.16695338,39117.0,39111.0,0.3]
[1646436985090,0.16695338,39117.0,39110.0,0.35]
[1646436985393,0.2211611,39117.0,39109.0,0.05]
[1646436985591,0.2211611,39117.0,39106.0,0.31377]
[1646436985796,0.376461,39116.0,39106.0,0.01377]
[1646436985990,0.376461,39116.0,39111.0,0.00011923]
[1646436985991,0.93685106,39116.0,39111.0,0.00011923]
[1646436986190,0.8062,39116.0,39111.0,0.00011923]
[1646436986390,0.025,39116.0,39111.0,0.00011923]
[1646436986589,0.8062,39116.0,39111.0,0.00011923]
[1646436986792,1.157661,39114.0,39111.0,0.00011923]
[1646436987046,0.025,39116.0,39099.0,0.01277]
[1646436987047,0.80684,39112.0,39099.0,0.01277]
[1646436987247,0.19427807,39105.0,39100.0,0.376461]
[1646436987446,0.7812,39111.0,39106.0,0.3652954]
[1646436987648,0.140399,39112.0,39106.0,0.3652954]
[1646436987649,0.98825106,39110.0,39106.0,0.3652954]
[1646436987846,0.7812,39110.0,39106.0,0.3652954]
[1646436988045,0.15565106,39109.0,39106.0,0.3652954]
[1646436988246,0.19072516,39108.0,39106.0,0.3652954]
[1646436988846,0.0514,39109.0,39106.0,0.3652954]
[1646436989650,0.0514,39109.0,39106.0,0.36540107]
[1646436990249,0.0514,39109.0,39106.0,0.53484187]
[1646436990649,0.0514,39109.0,39106.0,0.5347362]
[1646436990890,0.0514,39109.0,39106.0,0.53484187]
[1646436991089,0.0514,39109.0,39106.0,0.36540107]
[1646436991293,0.24000001,39108.0,39106.0,0.36540107]
[1646436991890,0.24000001,39108.0,39106.0,0.3652954]
[1646436992294,0.23860033,39108.0,39106.0,0.3652954]
[1646436996951,0.23360033,39108.0,39106.0,0.3652954]
[1646437007088,0.23360033,39108.0,39107.0,0.676461]
[1646437007489,0.23360033,39108.0,39107.0,0.702101]
[1646437007688,0.23360033,39108.0,39107.0,0.676461]
[1646437007888,0.23360033,39108.0,39107.0,0.702101]
[1646437008092,0.23360033,39108.0,39107.0,0.87243638]
[1646437010142,0.03827338,39117.0,39107.0,0.87243638]
[1646437010346,0.03827338,39117.0,39113.0,0.17582162]
[1646437010544,0.03827338,39117.0,39114.0,0.376386]
[1646437011443,0.03827338,39117.0,39114.0,0.3764939]
[1646437012345,0.03827338,39117.0,39114.0,0.376386]
[1646437012544,0.03827338,39117.0,39114.0,0.3764939]
[1646437013394,0.03827338,39117.0,39114.0,0.376386]
[1646437013588,0.03827338,39117.0,39114.0,0.3764939]
[1646437014591,0.03827338,39117.0,39114.0,0.376386]
[1646437014792,0.03827338,39117.0,39114.0,0.3764939]
[1646437014993,0.03759227,39117.0,39114.0,0.3764939]
[1646437015494,0.03759227,39117.0,39115.0,0.376376]
[1646437015792,0.000688,39115.0,39114.0,0.3765689]
[1646437016393,0.000688,39115.0,39114.0,0.2198999]
[1646437016595,0.000688,39115.0,39114.0,0.0001079]
[1646437017037,0.000688,39115.0,39110.0,0.001]
[1646437017239,0.000688,39115.0,39113.0,0.0001079]
[1646437017640,0.21426033,39114.0,39113.0,0.0001079]
[1646437018239,0.21426033,39114.0,39106.0,0.3652954]
[1646437018443,0.21426033,39114.0,39112.0,0.0001079]
[1646437019540,0.21426033,39114.0,39106.0,0.3652954]
[1646437019740,0.21426033,39114.0,39111.0,0.00010791]
[1646437020800,0.21426033,39114.0,39106.0,0.3652954]
[1646437021001,0.2398921,39110.0,39106.0,0.3652954]
[1646437021203,0.2398921,39110.0,39107.0,0.376461]
[1646437022901,0.010231,39111.0,39110.0,0.31962207]
[1646437023102,0.000688,39115.0,39110.0,0.07962206]
[1646437023301,0.000688,39115.0,39111.0,0.376461]
[1646437023502,0.000688,39115.0,39111.0,0.55500337]
[1646437023707,0.000688,39115.0,39114.0,0.1627532]
[1646437023902,0.000688,39115.0,39114.0,0.4325772]
[1646437024938,0.025,39125.0,39114.0,0.4325772]
[1646437025139,0.02399641,39125.0,39115.0,0.67642]
[1646437025340,0.02399641,39125.0,39114.0,0.2127532]
[1646437025940,0.02399641,39125.0,39114.0,0.05]
[1646437026344,0.17009563,39119.0,39111.0,0.002]
[1646437026541,0.06309193,39117.0,39112.0,0.376461]
[1646437026740,0.17009563,39119.0,39112.0,0.426461]
[1646437026943,2.15835518,39113.0,39110.0,0.07962206]
[1646437027141,2.15835518,39113.0,39111.0,0.376461]
[1646437028391,0.06744222,39112.0,39111.0,0.376461]
[1646437028693,0.06744222,39112.0,39110.0,0.12962206]